bitfinex/quotes_ETHUSD_20250213
["timestamp","ask_amount","ask_price","bid_price","bid_amount"]
[1739477054655,5.32,2649.9,2649.8,6.77386]
[1739477057094,5.32,2649.9,2649.8,7.58856]
[1739477057291,0.937412,2650.4,2649.9,6.77367]
[1739477057576,0.937412,2650.4,2650.0,6.77356]
[1739477057921,0.144312,2650.4,2650.2,3.77329]
[1739477058178,0.144312,2650.4,2650.3,3.77315]
[1739477058479,0.144312,2650.4,2650.2,4.56369]
[1739477058831,0.144312,2650.4,2650.3,3.77315]
[1739477059340,0.144312,2650.4,2650.3,7.606827]
[1739477060201,0.144312,2650.4,2650.3,3.833677]
[1739477060364,0.144312,2650.4,2650.3,6.77315]
[1739477060699,0.144312,2650.4,2650.3,3.0]
[1739477062203,0.144312,2650.4,2650.3,6.77315]
[1739477062810,0.28264807,2650.4,2650.3,6.77315]
[1739477065284,0.28264807,2650.4,2650.3,7.57635]
[1739477065507,0.144312,2650.4,2650.3,8.711306]
[1739477066191,0.28278105,2650.4,2650.3,8.711306]
[1739477066430,0.28278105,2650.4,2650.3,7.57635]
[1739477067835,0.144312,2650.4,2650.3,7.57635]
[1739477068032,0.28278105,2650.4,2650.3,7.57635]
[1739477068548,0.144312,2650.4,2650.3,7.92882636]
[1739477070279,2e-06,2650.4,2650.3,7.92882636]
[1739477070575,2e-06,2650.4,2650.3,9.46645799]
[1739477076323,3.77092,2651.9,2650.3,9.46645799]
[1739477076324,0.7538,2652.0,2650.5,0.8283]
[1739477076462,0.7538,2652.0,2651.7,3.77115]
[1739477076825,0.7538,2652.0,2651.8,3.77102]
[1739477077033,5.32,2652.1,2651.8,3.77102]
[1739477077314,0.7538,2653.0,2652.6,3.76979]
[1739477077473,0.7538,2653.0,2652.7,3.0]
[1739477077676,0.13958959,2652.9,2652.7,3.0]
[1739477078223,0.13958959,2652.9,2652.7,3.76964]
[1739477078520,0.144312,2653.1,2652.7,3.76967]
[1739477078824,0.144312,2653.1,2652.9,6.76944]
[1739477079164,0.144312,2653.1,2653.0,6.76931]
[1739477079965,0.144312,2653.1,2653.0,7.898665]
[1739477080864,0.144312,2653.1,2653.0,6.76931]
[1739477081661,0.144312,2653.1,2653.0,3.0]
[1739477082392,3.76944,2653.0,2652.4,3.77008]
[1739477082968,4.56252,2653.0,2652.4,3.77008]
[1739477083166,3.76958,2652.9,2652.3,0.8013]
[1739477083411,0.46097974,2652.8,2652.2,0.76727346]
[1739477083613,0.46097974,2652.8,2652.3,3.77019]
[1739477083927,0.7931,2653.0,2652.3,3.77019]
[1739477084409,0.7931,2653.0,2652.2,0.75458876]
[1739477084615,0.7931,2653.0,2652.3,3.02788109]
[1739477084810,0.144312,2653.1,2652.9,6.76942]
[1739477085119,0.144312,2653.1,2652.9,3.0]
[1739477085410,0.144312,2653.1,2652.9,6.76938]
[1739477086075,0.144312,2653.1,2653.0,3.76931]
[1739477086279,0.144312,2653.1,2653.0,7.823191]
[1739477086695,0.144312,2653.1,2653.0,8.621191]
[1739477092471,0.144312,2653.1,2653.0,6.76931]
[1739477092818,0.28920343,2653.1,2653.0,3.0]
[1739477093016,0.144312,2653.1,2652.6,3.76988]
[1739477093319,0.14489143,2653.0,2652.7,3.0]
[1739477093610,0.14489143,2653.0,2652.6,3.76979]
[1739477093816,0.14489143,2653.0,2652.7,3.76974]
[1739477094247,0.14489143,2653.0,2652.7,3.76973]
[1739477094442,0.14489143,2653.0,2652.7,6.76973]
[1739477094745,0.14489143,2653.0,2652.9,3.0]
[1739477095245,0.14489143,2653.0,2652.7,6.76966]
[1739477095656,0.14489143,2653.0,2652.2,3.67421998]
[1739477095804,0.14489143,2653.0,2652.4,3.77007]
[1739477095805,0.7631,2652.9,2652.4,3.77007]
[1739477095999,0.7631,2652.9,2652.5,3.76994]
[1739477096251,0.14440814,2652.8,2652.6,3.0]
[1739477096449,0.14440814,2652.8,2652.2,3.77038]
[1739477096615,0.14440814,2652.8,2652.6,3.76975]
[1739477096816,0.14440814,2652.8,2652.7,3.76974]
[1739477096998,0.14440814,2652.8,2652.7,6.76974]
[1739477098153,0.14440814,2652.8,2652.7,6.7976206]
[1739477098318,0.144312,2653.1,2652.8,6.76951]
[1739477099216,0.144312,2653.1,2653.0,3.76931]
[1739477099807,0.144312,2653.1,2652.8,4.903635]
[1739477100001,0.144312,2653.1,2652.7,3.76973]
[1739477100205,0.7931,2653.0,2652.7,3.76973]
[1739477100418,0.7931,2653.0,2652.8,3.0]
[1739477100616,0.7931,2653.0,2652.5,3.76993]
[1739477100927,0.144312,2653.1,2653.0,6.76931]
[1739477101133,0.144312,2653.1,2653.0,7.823186]
[1739477101957,0.144312,2653.1,2653.0,4.053876]
[1739477102160,0.144312,2653.1,2653.0,3.0]
[1739477103336,0.144312,2653.1,2652.8,3.0]
[1739477103523,0.144312,2653.1,2652.3,5.25690108]
[1739477103719,3.913562,2653.1,2652.5,3.76993]
[1739477104110,0.144312,2653.1,2652.7,6.76967]
[1739477104312,0.144312,2653.1,2652.4,3.0]
[1739477104559,0.144312,2653.1,2652.7,3.76973]
[1739477104762,0.144312,2653.1,2652.8,3.0]
[1739477106577,0.144312,2653.1,2652.8,3.76953]
[1739477106715,0.144312,2653.1,2652.9,3.76935]
[1739477106915,0.144312,2653.1,2652.8,3.76952]
[1739477107367,0.144312,2653.1,2652.7,3.0]
[1739477107561,0.14383951,2653.0,2652.7,3.0]
[1739477108057,0.7931,2652.9,2652.5,6.76998]
[1739477108465,0.14384899,2652.8,2652.5,6.76998]
[1739477108817,0.14384899,2652.8,2652.5,10.53993]
[1739477109015,0.14384899,2652.8,2652.5,6.76995]
[1739477109250,0.14384899,2652.8,2652.7,3.76974]
[1739477109427,0.14384899,2652.8,2652.5,4.59590231]
[1739477109648,0.14384899,2652.8,2652.6,0.35272691]
[1739477110050,0.14384899,2652.8,2652.7,3.0]
[1739477110227,0.14384899,2652.8,2652.6,0.35272691]
[1739477110828,3.91345899,2652.8,2652.6,0.35272691]
[1739477111052,3.91345899,2652.8,2652.7,0.35272691]
[1739477111450,4.98826089,2652.8,2652.7,0.35272691]
[1739477111883,8.06086089,2652.8,2652.7,0.35272691]
[1739477112447,8.06086089,2652.8,2652.2,0.35272691]
[1739477112448,8.61836089,2652.8,2652.2,0.35272691]
[1739477112653,2.272,2652.4,2652.2,0.35272691]
[1739477112853,6.04217,2652.4,2652.2,0.35272691]
[1739477113101,0.14347924,2652.3,2652.2,0.35272691]
[1739477113592,0.015,2652.5,2652.2,0.35272691]
[1739477113794,3.92861855,2652.3,2652.2,0.35272691]
[1739477114119,6.05731,2652.3,2652.2,0.35272691]
[1739477114253,6.20061855,2652.3,2651.7,3.77111]
[1739477114696,0.0075,2652.1,2651.5,3.77135]
[1739477115421,0.14330855,2652.0,2651.7,3.77104]
[1739477115758,0.14330855,2652.0,2651.5,3.77135]
[1739477115959,0.14330855,2652.0,2651.8,0.35213311]
[1739477116189,0.7502,2651.9,2651.8,0.35213311]
[1739477116595,0.89350855,2651.9,2651.8,0.35213311]
[1739477117447,0.89350855,2651.9,2651.5,3.77137]
[1739477117702,0.14330855,2651.9,2651.7,3.0]
[1739477117997,0.7705,2652.1,2651.7,3.0]
[1739477118203,0.14202848,2651.8,2651.7,3.77107]
[1739477118405,0.7705,2652.4,2652.1,3.0]
[1739477118554,0.7705,2652.8,2652.2,3.0]
[1739477118751,5.32,2653.0,2652.7,3.0]
[1739477118952,0.937412,2653.1,2652.7,6.76973]
[1739477119469,0.937412,2653.1,2652.6,3.0]
[1739477119724,4.706672,2653.1,2652.6,3.0]
[1739477120619,3.76932,2653.0,2652.6,3.0]
[1739477120770,3.81667042,2652.9,2652.4,3.0]
[1739477121307,4.15154204,2653.0,2652.5,3.77]
[1739477121688,0.0075,2652.9,2652.4,3.0]
[1739477122218,0.0075,2652.9,2652.4,6.77015]
[1739477122611,0.13731829,2652.8,2652.4,6.77015]
[1739477123194,0.13731829,2652.8,2652.6,3.76988]
[1739477123517,0.937412,2653.1,2652.6,3.76988]
[1739477123719,0.13719479,2652.7,2652.5,6.77001]
[1739477123926,8.475932,2653.1,2652.5,6.77001]
[1739477124098,0.937412,2653.1,2652.5,0.02788042]
[1739477124295,0.937412,2653.1,2652.6,0.7523]
[1739477124498,0.937412,2653.1,2652.7,3.0]
[1739477124696,4.706582,2653.1,2652.7,3.0]
[1739477125022,0.937412,2653.1,2652.8,3.7696]
[1739477125224,0.144312,2653.1,2652.7,3.0]
[1739477125395,0.144312,2653.1,2652.8,3.7696]
[1739477125592,0.144312,2653.1,2652.8,3.7695]
[1739477125816,0.144312,2653.1,2652.9,3.76941]
[1739477126488,0.144312,2653.1,2652.6,0.7523]
[1739477126688,0.144312,2653.1,2652.7,3.0]
[1739477127431,0.144312,2653.1,2652.7,6.7697]
[1739477127726,0.144312,2653.1,2652.8,3.76952]
[1739477128382,0.144312,2653.1,2652.8,3.76958]
[1739477129730,0.144312,2653.1,2652.7,6.76972]
[1739477130104,0.144312,2653.1,2652.7,6.76967]
[1739477130750,3.913502,2653.1,2652.6,4.52209]
[1739477131053,1.07732794,2653.1,2652.8,3.76957]
[1739477131259,0.144312,2653.1,2652.7,6.76973]
[1739477132315,0.144312,2653.1,2652.6,0.7523]
[1739477132549,0.144312,2653.1,2653.0,6.76931]
[1739477133434,0.144312,2653.1,2653.0,7.61197302]
[1739477133748,0.144312,2653.1,2653.0,7.58411]
[1739477133957,0.144312,2653.1,2653.0,9.43918041]
[1739477135354,0.144312,2653.1,2653.0,10.19588288]
[1739477140090,2e-06,2653.4,2653.3,3.76889]
[1739477140251,2e-06,2653.4,2653.3,11.28824282]
[1739477140451,2e-06,2653.4,2653.3,12.76613526]
[1739477141251,2e-06,2653.4,2653.3,13.42363526]
[1739477141484,0.79,2654.7,2653.5,0.1]
[1739477141683,0.7931,2655.0,2654.7,3.76682]
[1739477142087,0.14023416,2654.9,2654.7,3.76682]
[1739477142305,0.14023416,2654.9,2654.5,3.76712]
[1739477142461,0.14023416,2654.9,2654.6,3.76699]
[1739477142661,0.14023416,2654.9,2654.7,3.76688]
[1739477142855,0.14023416,2654.9,2654.7,3.76681]
[1739477143051,0.0075,2654.6,2653.7,0.7716]
[1739477143369,0.7931,2654.2,2653.5,3.7685]
[1739477143687,3.76783,2654.1,2653.5,4.76062298]
[1739477143886,3.76797,2654.0,2653.5,4.12081041]
[1739477144316,0.14051886,2653.9,2653.6,3.0]
[1739477144816,3.90855886,2653.9,2653.5,0.35230041]
[1739477144988,0.7931,2653.8,2653.5,0.35230041]
[1739477145197,3.95564539,2653.7,2653.5,0.35230041]
[1739477145408,7.67694027,2653.7,2653.1,3.76907]
[1739477145604,3.90852027,2653.7,2653.1,3.76907]
[1739477145785,4.52337,2653.5,2652.9,7.53875]
[1739477145985,0.13993991,2653.4,2652.9,3.76937]
[1739477146321,0.13993991,2653.4,2653.1,3.76916]
[1739477147501,0.13993991,2653.4,2653.2,6.76903]
[1739477147706,0.13993991,2653.4,2653.3,6.76889]
[1739477148014,0.13993991,2653.4,2653.3,3.0]
[1739477151842,0.13993991,2653.4,2652.8,0.53429866]
[1739477151843,3.90870991,2653.4,2652.8,3.7695]
[1739477151999,0.47384099,2653.3,2652.8,3.7695]
[1739477152195,0.1392563,2653.2,2652.5,0.74679932]
[1739477152525,0.1392563,2653.2,2653.0,3.76922]
[1739477152930,4.52336,2653.5,2653.0,3.76922]
[1739477153299,0.0075,2653.3,2653.0,3.76922]
[1739477153700,3.77639,2653.3,2652.9,3.0]
[1739477153916,0.13900939,2653.2,2652.9,6.76944]
[1739477154136,0.13900939,2653.2,2653.0,3.76929]
[1739477154445,0.13899039,2653.1,2653.0,3.76929]
[1739477154794,0.837475,2653.3,2653.0,3.76929]
[1739477154997,0.13899039,2653.2,2653.0,3.76929]
[1739477155943,0.13899039,2653.2,2652.9,3.0]
[1739477155944,0.7931,2653.1,2652.9,3.0]
[1739477156146,0.7931,2653.1,2652.8,3.0]
[1739477156442,0.13901889,2653.0,2652.8,3.0]
[1739477156965,0.13901889,2653.0,2652.8,6.76958]
[1739477157928,0.13901889,2653.0,2652.9,3.76945]
[1739477160380,0.13901889,2653.0,2652.8,3.76946]
[1739477160545,0.13901889,2653.0,2652.9,3.0]
[1739477161113,0.13901889,2653.0,2652.7,6.76972]
[1739477161249,0.7897,2652.7,2652.3,3.7703]
[1739477161446,0.13899039,2652.6,2652.5,3.77]
[1739477162006,0.13899039,2652.6,2652.5,6.77]
[1739477163386,0.7958,2652.9,2652.6,3.0]
[1739477163566,0.13875293,2652.8,2652.6,6.76979]
[1739477163952,3.90837293,2652.8,2652.3,10.54043]
[1739477164153,0.65618231,2652.8,2652.5,3.0]
[1739477164466,0.65618231,2652.8,2652.4,3.0]
[1739477164467,0.13875293,2652.8,2652.4,3.0]
[1739477164669,0.13875293,2652.8,2652.7,3.76974]
[1739477164988,0.13875293,2652.8,2652.4,3.77009]
[1739477166498,3.90841293,2652.8,2652.3,10.54051]
[1739477166699,3.90841293,2652.8,2652.4,3.77015]
[1739477166909,4.75578622,2652.8,2652.3,6.77023]
[1739477167256,4.75578622,2652.8,2652.3,10.54048]
[1739477167457,0.98612622,2652.8,2652.6,3.0]
[1739477167688,0.13875293,2652.8,2652.6,3.0]
[1739477169400,0.13875293,2652.8,2652.6,6.76983]
[1739477169998,0.13875293,2652.8,2652.6,3.0]
[1739477170151,0.13875293,2652.8,2652.4,3.7701]
[1739477170657,0.13875293,2652.8,2652.3,6.77022]
[1739477170658,3.77729,2652.7,2652.3,6.77022]
[1739477170875,0.13779356,2652.6,2652.3,6.77022]
[1739477171276,0.13779356,2652.6,2652.5,6.77002]
[1739477174261,0.13779356,2652.6,2652.5,3.0]
[1739477176773,6.82983,2652.9,2652.5,6.77002]
[1739477176971,0.14524605,2652.8,2652.5,3.0]
[1739477177361,3.91485605,2652.8,2652.5,3.0]
[1739477177611,0.14524605,2652.8,2652.5,3.0]
[1739477178099,0.14524605,2652.8,2652.5,6.76995]
[1739477178804,0.13774605,2652.8,2652.7,3.76974]
[1739477179012,0.9793463,2653.2,2652.7,7.523716]
[1739477179163,0.9793463,2653.2,2652.8,3.0]
[1739477179352,0.9793463,2653.2,2652.9,3.76935]
[1739477179552,0.13765102,2653.0,2652.9,3.76935]
[1739477179804,0.9793463,2653.2,2652.9,3.76935]
[1739477180008,0.13765102,2653.1,2653.0,3.76922]
[1739477180306,0.13765102,2653.1,2652.9,3.76934]
[1739477180605,0.13765102,2653.1,2653.0,6.76931]
[1739477181099,0.0075,2653.3,2653.0,6.76931]
[1739477181307,0.13790754,2653.1,2653.0,6.76931]
[1739477181451,0.0075,2653.3,2653.0,6.76931]
[1739477181658,0.13790754,2653.2,2653.1,3.76917]
[1739477181873,0.0075,2653.3,2653.1,3.76917]
[1739477182086,0.0075,2653.3,2653.0,6.76931]
[1739477182087,0.13790754,2653.2,2653.0,6.76931]
[1739477182307,0.13790754,2653.2,2653.0,3.0]
[1739477182493,3.77644,2653.3,2653.0,3.0]
[1739477182494,0.0075,2653.3,2653.0,3.0]
[1739477182656,0.13808802,2653.1,2653.0,3.0]
[1739477182857,0.0075,2653.3,2653.0,3.0]
[1739477183109,0.13808802,2653.2,2653.0,6.76926]
[1739477183482,0.0075,2653.3,2653.0,6.76923]
[1739477183665,0.13808802,2653.1,2653.0,10.53847]
[1739477183866,0.0075,2653.3,2653.1,3.76909]
[1739477184066,0.13808802,2653.2,2653.1,3.76909]
[1739477184307,0.0075,2653.3,2653.1,3.76909]
[1739477184508,8.3851,2653.4,2653.1,3.76909]
[1739477184509,0.13808802,2653.2,2653.1,4.823016]
[1739477184812,5.32,2653.4,2653.1,4.823016]
[1739477184958,5.32,2653.4,2653.1,3.76917]
[1739477185157,0.13808802,2653.3,2653.1,3.76917]
[1739477185666,4.56163,2653.6,2653.1,3.76917]
[1739477185859,3.90667852,2653.5,2653.1,3.76917]
[1739477186114,3.90667852,2653.5,2653.0,6.7693]
[1739477186291,3.90667852,2653.5,2653.0,10.53849]
[1739477186460,0.0075,2653.4,2653.0,6.76919]
[1739477186655,0.931283,2653.3,2653.0,6.76919]
[1739477186892,0.931283,2653.3,2653.0,3.0]
[1739477187123,4.700193,2653.3,2653.0,3.0]
[1739477187715,0.931283,2653.3,2653.0,3.0]
[1739477188207,0.931283,2653.3,2653.1,3.76913]
[1739477188414,0.138183,2653.3,2653.1,3.76913]
[1739477188711,0.145683,2653.3,2653.2,3.76903]
[1739477190168,0.145683,2653.3,2653.1,3.76913]
[1739477190362,0.145683,2653.3,2653.2,3.76903]
[1739477190562,0.145683,2653.3,2653.1,3.76913]
[1739477191418,0.145683,2653.3,2653.1,3.7691]
[1739477192287,0.145683,2653.3,2653.0,6.7693]
[1739477193028,0.145683,2653.3,2653.1,3.76909]
[1739477193199,0.145683,2653.3,2653.0,6.76929]
[1739477193406,0.145683,2653.3,2653.2,3.76903]
[1739477193576,0.145683,2653.3,2653.0,6.76917]
[1739477194213,0.145683,2653.3,2653.1,3.76915]
[1739477195025,0.145683,2653.3,2653.1,3.76908]
[1739477195192,0.145683,2653.3,2653.2,3.76903]
[1739477195576,0.138183,2653.3,2653.2,3.76903]
[1739477195821,0.138183,2653.3,2653.2,6.76903]
[1739477196019,0.0075,2653.6,2653.4,3.76874]
[1739477196328,0.13847756,2653.5,2653.4,3.76874]
[1739477196690,6.84291,2653.4,2652.8,3.7695]
[1739477196925,0.0075,2653.2,2652.3,0.804]
[1739477197123,0.0075,2653.0,2652.7,3.0]
[1739477197743,0.0075,2653.0,2652.3,0.804]
[1739477197744,3.76966,2652.8,2652.3,4.57429]
[1739477197914,0.7766,2652.7,2652.2,3.77035]
[1739477198098,0.91498257,2652.7,2652.3,3.0]
[1739477198593,0.91498257,2652.7,2652.5,3.77002]
[1739477199295,0.91498257,2652.7,2652.3,3.77025]
[1739477199615,0.91498257,2652.7,2652.5,3.0]
[1739477199811,0.91498257,2652.7,2652.4,3.77012]
[1739477200128,0.91498257,2652.7,2652.5,6.77002]
[1739477200477,0.13838257,2652.7,2652.6,6.76988]
[1739477200678,3.76939,2653.0,2652.6,3.0]
[1739477200938,0.13838257,2652.9,2652.6,3.0]
[1739477201526,3.76932,2653.0,2652.6,3.0]
[1739477201690,0.13775556,2652.8,2652.6,3.0]
[1739477202027,2.2735,2652.8,2652.6,3.0]
[1739477202277,0.13775556,2652.7,2652.6,3.0]
[1739477202531,0.015,2652.9,2652.6,3.0]
[1739477202716,0.13775556,2652.7,2652.6,6.76976]
[1739477202900,4.73228236,2653.1,2652.6,6.76976]
[1739477203087,0.13775556,2652.7,2652.6,6.76976]
[1739477203287,0.96309236,2653.1,2652.7,3.76974]
[1739477203482,5.32,2653.3,2652.7,3.8106797]
[1739477203795,5.32,2653.3,2653.0,3.76924]
[1739477203975,0.0075,2653.3,2653.0,3.0]
[1739477204578,3.76911,2653.2,2652.7,7.55244]
[1739477204807,3.76929,2653.1,2652.7,3.7828]
[1739477205011,0.7767,2652.9,2652.5,0.8097]
[1739477205224,0.0075,2652.8,2652.4,3.7701]
[1739477206337,0.0075,2652.8,2652.5,3.0]
[1739477206635,0.0075,2652.8,2652.5,6.77]
[1739477207882,3.77711,2652.8,2652.5,3.0]
[1739477208432,0.0075,2652.8,2652.5,3.0]
[1739477209632,0.0075,2652.8,2652.2,3.0]
[1739477209873,3.77073,2652.0,2651.9,2.65041225]
[1739477210150,4.54793,2652.0,2651.9,2.65041225]
[1739477210362,0.7772,2652.0,2651.9,2.65041225]
[1739477211617,4.54793,2652.0,2651.9,2.65041225]
[1739477212730,4.68557154,2652.0,2651.9,2.65041225]
[1739477214582,6.30778869,2652.0,2651.9,2.65041225]
[1739477214798,6.30778869,2652.0,2651.2,6.77184]
[1739477214799,3.77117,2651.7,2651.2,6.77184]
[1739477214955,0.04714485,2651.6,2651.2,6.77184]
[1739477215282,0.13600671,2651.6,2651.2,6.77184]
[1739477215783,0.13600671,2651.6,2651.1,0.7604]
[1739477215784,0.92910671,2651.6,2651.1,0.7604]
[1739477215941,0.565,2651.5,2651.0,3.77215]
[1739477216136,4.33645,2651.5,2651.0,3.77215]
[1739477216334,4.28645,2651.5,2651.0,3.77215]
[1739477216536,0.13600671,2651.4,2651.1,3.0]
[1739477216768,0.13600671,2651.4,2651.0,3.77215]
[1739477216987,0.13600671,2651.4,2650.8,4.57835]
[1739477217155,3.90766671,2651.4,2650.8,4.57835]
[1739477217383,3.90766671,2651.4,2650.9,3.7723]
[1739477217587,3.90766671,2651.4,2651.0,3.0]
[1739477217819,0.13600671,2651.4,2651.0,3.0]
[1739477217988,3.90761671,2651.4,2651.0,3.0]
[1739477218390,0.13600671,2651.4,2651.0,3.0]
[1739477218592,0.13600671,2651.4,2651.0,6.77211]
[1739477218789,0.13600671,2651.4,2651.1,3.77199]
[1739477219679,0.13600671,2651.4,2651.0,3.0]
[1739477219928,3.90761671,2651.4,2651.0,3.0]
[1739477220233,0.13600671,2651.4,2651.0,10.54412]
[1739477220537,0.13600671,2651.4,2651.3,4.57563]
[1739477220717,0.13600671,2651.4,2651.3,7.57563]
[1739477220881,5.32,2651.6,2651.4,3.77153]
[1739477221087,0.13549317,2651.5,2651.3,7.57563]
[1739477221282,0.13549317,2651.5,2651.4,3.77159]
[1739477221484,0.13549317,2651.5,2651.4,4.906312]
[1739477221904,0.13549317,2651.5,2650.3,3.77304]
[1739477221905,0.7931,2651.4,2650.8,0.7628]
[1739477222132,3.82651015,2651.3,2650.8,0.7628]
[1739477222297,0.14320242,2651.3,2651.0,3.77215]
[1739477222731,0.14320242,2651.3,2651.1,3.77192]
[1739477222732,0.13570242,2651.3,2651.1,3.77192]
[1739477222936,0.13570242,2651.3,2651.2,7.54307]
[1739477223389,4.56413,2651.8,2651.3,6.77166]
[1739477223584,5.99132204,2651.8,2651.3,6.77166]
[1739477224287,2.22029204,2651.8,2651.4,3.77158]
[1739477224647,3.77074,2652.0,2651.5,3.77132]
[1739477224790,3.77074,2652.0,2651.6,3.7713]
[1739477225008,3.7783,2652.0,2651.5,3.77142]
[1739477225353,0.0075,2652.0,2651.6,3.7712]
[1739477225656,4.56381,2652.1,2651.9,3.77082]
[1739477225657,0.7931,2652.1,2651.9,3.77082]
[1739477226365,0.0075,2652.2,2652.0,3.77073]
[1739477226566,0.7931,2652.5,2652.0,3.77073]
[1739477226771,0.7931,2652.7,2652.3,3.7703]
[1739477227272,0.7931,2652.7,2652.4,3.0]
[1739477227473,0.7931,2652.7,2652.4,6.77013]
[1739477227637,0.13602571,2652.6,2652.5,6.77002]
[1739477227970,5.32,2653.1,2652.8,3.76953]
[1739477228177,5.32,2653.1,2652.8,3.76948]
[1739477228525,5.32,2653.1,2652.9,3.76939]
[1739477228727,9.88211,2653.3,2652.8,3.0]
[1739477229032,11.474554,2653.3,2652.8,3.0]
[1739477229279,7.705544,2653.3,2652.8,3.0]
[1739477229575,3.76905,2653.2,2652.8,3.0]
[1739477229957,3.76905,2653.2,2652.7,0.8041]
[1739477230145,3.76905,2653.2,2652.7,3.8041]
[1739477230345,7.53816,2653.2,2652.7,3.8041]
[1739477230547,3.76905,2653.2,2652.7,3.8041]
[1739477231347,5.32,2653.3,2652.8,3.76947]
[1739477231872,9.08889,2653.3,2652.8,3.76947]
[1739477232273,3.76903,2653.2,2652.7,7.57384]
[1739477232580,5.32,2653.3,2652.8,3.76958]
[1739477232736,9.0889,2653.3,2652.8,3.76958]
[1739477232937,3.7689,2653.3,2652.8,3.76958]
[1739477233175,3.76903,2653.2,2652.8,3.76958]
[1739477233348,3.76903,2653.2,2652.7,3.8041]
[1739477233548,3.76903,2653.2,2652.7,4.938464]
[1739477233866,3.76921,2653.1,2652.7,4.938464]
[1739477234165,9.08879,2653.4,2652.7,1.938464]
[1739477234359,9.08879,2653.4,2652.9,3.7694]
[1739477234562,9.08879,2653.4,2652.8,3.76948]
[1739477234738,3.76903,2653.2,2652.7,7.57376]
[1739477234934,9.08879,2653.4,2652.7,7.57376]
[1739477235159,9.08879,2653.4,2652.9,3.76936]
[1739477235474,9.08876,2653.4,2652.9,3.76936]
[1739477236198,9.08876,2653.4,2652.9,7.53874]
[1739477236397,5.32,2653.4,2653.2,3.76891]
[1739477236598,5.32,2653.4,2653.2,3.0]
[1739477237455,9.08875,2653.4,2653.2,3.0]
[1739477237661,9.08875,2653.4,2653.1,3.0]
[1739477238396,5.32,2653.4,2653.1,3.0]
[1739477238601,5.32,2653.4,2653.1,6.76914]
[1739477238804,5.32,2653.4,2653.1,3.0]
[1739477239657,5.32,2653.7,2653.3,3.0]
[1739477239968,3.76833,2653.7,2653.3,3.0]
[1739477240134,3.76833,2653.7,2653.2,4.57906]
[1739477240135,3.76852,2653.6,2653.2,3.0]
[1739477240302,3.76867,2653.5,2653.2,3.0]
[1739477241578,0.0075,2653.6,2653.2,3.0]
[1739477241779,2.2735,2653.6,2653.2,3.0]
[1739477242105,6.03487,2653.4,2653.2,3.0]
[1739477242310,6.82357,2653.4,2653.2,3.0]
[1739477242623,3.76889,2653.3,2653.2,3.0]
[1739477242822,3.90713007,2653.3,2652.9,0.8101]
[1739477243523,3.90713007,2653.3,2652.7,0.7809]
[1739477243524,3.76903,2653.2,2652.7,0.7809]
[1739477243737,3.76928,2653.1,2652.7,4.55057]
[1739477243938,2.266,2653.2,2652.8,6.76949]
[1739477244093,0.13824007,2653.0,2652.8,6.76949]
[1739477244293,2.266,2653.2,2652.8,6.76949]
[1739477244590,3.90742007,2653.1,2652.7,4.55062]
[1739477244824,0.13824007,2653.1,2652.9,3.76945]
[1739477245017,0.13824007,2653.1,2653.0,3.76931]
[1739477245631,0.13824007,2653.1,2652.9,3.76945]
[1739477246239,0.13824007,2653.1,2653.0,3.76931]
[1739477247533,6.03489,2653.3,2652.8,6.76952]
[1739477247732,0.13827807,2653.1,2652.8,6.76952]
[1739477247937,2.266,2653.2,2652.8,3.0]
[1739477248092,0.13827807,2653.0,2652.7,0.7809]
[1739477248698,0.13827807,2653.0,2652.8,3.0]
[1739477249013,0.13827807,2653.0,2652.8,3.76959]
[1739477249828,0.13827807,2653.0,2652.7,0.7809]
[1739477250029,6.03559,2652.9,2652.5,3.0]
[1739477250217,6.03559,2652.9,2652.5,6.76996]
[1739477250398,0.13820207,2652.8,2652.5,6.76996]
[1739477250842,0.13820207,2652.8,2652.4,0.8299]
[1739477251143,0.13820207,2652.8,2652.5,3.0]
[1739477251352,0.13820207,2652.8,2652.7,3.0]
[1739477251510,0.13820207,2652.8,2652.4,3.8299]
[1739477251853,0.13820207,2652.8,2652.5,3.77001]
[1739477252235,0.13820207,2652.8,2652.5,7.53996]
[1739477252554,0.13820207,2652.8,2652.5,3.76995]
[1739477252751,0.13820207,2652.8,2652.7,3.0]
[1739477253251,0.13820207,2652.8,2652.4,4.60003]
[1739477253638,6.22100508,2652.8,2652.3,3.77029]
[1739477253810,6.82892,2652.7,2652.1,3.77046]
[1739477254012,3.0591,2652.7,2652.4,3.0]
[1739477254256,0.13782203,2652.6,2652.4,6.77006]
[1739477254716,0.13782203,2652.6,2652.2,3.0]
[1739477254910,0.13782203,2652.6,2652.4,6.77006]
[1739477255150,2.266,2652.8,2652.4,6.77006]
[1739477255332,0.13775552,2652.5,2652.4,6.77006]
[1739477255516,2.266,2652.8,2652.4,6.77006]
[1739477255847,0.13775552,2652.5,2652.4,6.77006]
[1739477256055,6.03566,2652.8,2652.4,3.0]
[1739477256253,0.13775552,2652.5,2652.4,3.0]
[1739477256415,6.03566,2652.8,2652.4,3.0]
[1739477256615,0.13775552,2652.5,2652.4,3.0]
[1739477256815,6.03574,2652.7,2652.4,3.0]
[1739477257010,0.13775552,2652.5,2652.4,3.0]
[1739477257260,2.266,2652.7,2652.4,3.0]
[1739477257762,0.13775552,2652.6,2652.4,3.0]
[1739477258286,0.13775552,2652.6,2651.8,0.7697]
[1739477258287,2.266,2652.4,2651.8,0.7697]
[1739477258415,2.266,2652.2,2651.7,3.77106]
[1739477258769,3.0591,2652.1,2651.7,3.77116]
[1739477258982,3.19641844,2652.1,2651.7,3.77116]